[Event "Championnat du monde jeunes U12"]
[Date "2024.11.22"]
[White "Batbaatar, Baatar"]
[Black "Gao, Arthur"]
[WhiteElo "2030"]
[BlackElo "1979"]
[Round "7.26"]
[Result "1-0"]
[TimeControl "5400+30"]

1. e4 {[%clk 1:30:45]} 1... c5 {[%clk 1:30:54]} 2. Nf3 {[%clk 1:31:09]} 2... e6
{[%clk 1:31:21]} 3. d4 {[%clk 1:31:30]} 3... cxd4 {[%clk 1:31:47]} 4. Nxd4
{[%clk 1:31:53]} 4... a6 {[%clk 1:32:14]} 5. Bd3 {[%clk 1:32:16]} 5... Nc6
{[%clk 1:32:41]} 6. Nxc6 {[%clk 1:31:39]} 6... dxc6 {[%clk 1:33:06]} 7. O-O
{[%clk 1:32:01]} 7... e5 {[%clk 1:32:56]} 8. Nd2 {[%clk 1:27:51]} 8... Bc5
{[%clk 1:32:49]} 9. Nc4 {[%clk 1:25:41]} 9... Qe7 {[%clk 1:33:00]} 10. a4 {[%clk
1:17:08]} 10... Nf6 {[%clk 1:31:03]} 11. c3 {[%clk 1:10:22]} 11... Bg4 {[%clk
1:18:43]} 12. Qc2 {[%clk 1:07:51]} 12... Nd7 {[%clk 1:04:47]} 13. b4 {[%clk
1:04:06]} 13... Ba7 {[%clk 1:05:07]} 14. a5 {[%clk 1:03:36]} 14... O-O {[%clk
1:03:09]} 15. Be3 {[%clk 0:59:06]} 15... c5 {[%clk 0:41:09]} 16. f3 {[%clk
0:50:58]} 16... Be6 {[%clk 0:38:49]} 17. Qf2 {[%clk 0:49:08]} 17... Rac8 {[%clk
0:22:50]} 18. Qe2 {[%clk 0:39:26]} 18... Bb8 {[%clk 0:07:57]} 19. Rab1 {[%clk
0:30:47]} 19... cxb4 {[%clk 0:08:04]} 20. cxb4 {[%clk 0:31:11]} 20... Rc6 {[%clk
0:03:00]} 21. b5 {[%clk 0:21:30]} 21... axb5 {[%clk 0:03:18]} 22. Rxb5 {[%clk
0:21:08]} 22... Nc5 {[%clk 0:03:13]} 23. Nb6 {[%clk 0:20:20]} 23... Rd8 {[%clk
0:01:19]} 24. Rd1 {[%clk 0:17:23]} 24... Ba7 {[%clk 0:00:52]} 25. Nd5 {[%clk
0:16:35]} 25... Qd6 {[%clk 0:00:32]} 26. Bc2 {[%clk 0:16:15]} 26... Kh8 {[%clk
0:00:34]} 27. Nb6 {[%clk 0:16:16]} 27... Qc7 {[%clk 0:00:35]} 28. Rxd8+ {[%clk
0:16:40]} 28... Qxd8 {[%clk 0:01:01]} 29. Rxc5 {[%clk 0:16:12]} 29... Bxb6
{[%clk 0:00:52]} 30. axb6 {[%clk 0:16:35]} 30... Qxb6 {[%clk 0:01:15]} 31. Rxc6
{[%clk 0:16:44]} 31... Qxc6 {[%clk 0:01:39]} 32. Bd3 {[%clk 0:16:21]} 32... h6
{[%clk 0:01:42]} 33. Qb2 {[%clk 0:15:44]} 33... f6 {[%clk 0:01:22]} 34. Qb6
{[%clk 0:14:10]} 34... Qc3 {[%clk 0:00:37]} 35. Bf1 {[%clk 0:14:09]} 35... Qc8
{[%clk 0:00:53]} 36. Qd6 {[%clk 0:14:10]} 36... Bd7 {[%clk 0:01:03]} 37. Bc5
{[%clk 0:14:18]} 37... Kh7 {[%clk 0:01:13]} 38. Bc4 {[%clk 0:14:00]} 1-0

[Variant "Standard"]
[Site "Europe Echecs"]

[Event "Championnat du monde jeunes U12"]
[Date "2024.11.22"]
[White "Bocquenet-Drouode, Hugo"]
[Black "Tona, Leonardo"]
[WhiteElo "2002"]
[BlackElo "1906"]
[Round "7.27"]
[Result "1-0"]
[TimeControl "5400+30"]

1. e4 {[%clk 1:30:58]} 1... c6 {[%clk 1:30:53]} 2. d4 {[%clk 1:31:25]} 2... d5
{[%clk 1:31:20]} 3. Nc3 {[%clk 1:31:49]} 3... dxe4 {[%clk 1:31:44]} 4. Nxe4
{[%clk 1:32:14]} 4... Nf6 {[%clk 1:32:00]} 5. Nxf6+ {[%clk 1:32:39]} 5... exf6
{[%clk 1:32:21]} 6. c3 {[%clk 1:32:46]} 6... Bf5 {[%clk 1:32:38]} 7. Bf4 {[%clk
1:28:39]} 7... Be7 {[%clk 1:30:48]} 8. Bd3 {[%clk 1:28:44]} 8... Bxd3 {[%clk
1:31:10]} 9. Qxd3 {[%clk 1:29:10]} 9... Nd7 {[%clk 1:30:51]} 10. Ne2 {[%clk
1:27:49]} 10... O-O {[%clk 1:29:46]} 11. O-O {[%clk 1:26:20]} 11... Nc5 {[%clk
1:27:11]} 12. Qc2 {[%clk 1:24:42]} 12... Ne6 {[%clk 1:27:26]} 13. Bg3 {[%clk
1:25:06]} 13... Re8 {[%clk 1:27:01]} 14. Rad1 {[%clk 1:23:00]} 14... Qd7 {[%clk
1:24:13]} 15. Rfe1 {[%clk 1:19:38]} 15... Rad8 {[%clk 1:24:02]} 16. a3 {[%clk
1:17:30]} 16... Ng5 {[%clk 1:21:05]} 17. h4 {[%clk 1:13:17]} 17... Ne6 {[%clk
1:20:55]} 18. c4 {[%clk 1:13:12]} 18... Bd6 {[%clk 1:09:58]} 19. Qf5 {[%clk
1:00:49]} 19... Bxg3 {[%clk 1:00:54]} 20. Nxg3 {[%clk 1:00:13]} 20... h6 {[%clk
0:44:45]} 21. d5 {[%clk 0:57:44]} 21... cxd5 {[%clk 0:44:54]} 22. cxd5 {[%clk
0:57:56]} 22... Nc7 {[%clk 0:44:48]} 23. Rxe8+ {[%clk 0:57:34]} 23... Nxe8
{[%clk 0:42:33]} 24. Qf4 {[%clk 0:55:15]} 24... Qd6 {[%clk 0:38:36]} 25. Qd2
{[%clk 0:50:40]} 25... Nc7 {[%clk 0:37:40]} 26. Nf5 {[%clk 0:50:31]} 26... Qd7
{[%clk 0:34:17]} 27. Qf4 {[%clk 0:47:28]} 27... Kh7 {[%clk 0:27:13]} 28. Rd3
{[%clk 0:41:53]} 28... Ne8 {[%clk 0:14:31]} 29. d6 {[%clk 0:33:19]} 29... g5
{[%clk 0:11:52]} 30. Qf3 {[%clk 0:22:02]} 30... Ng7 {[%clk 0:11:53]} 31. Ne3
{[%clk 0:20:09]} 31... f5 {[%clk 0:11:07]} 32. Rd5 {[%clk 0:19:21]} 32... Kg6
{[%clk 0:09:31]} 33. h5+ {[%clk 0:18:37]} 33... Kh7 {[%clk 0:08:56]} 34. Nxf5
{[%clk 0:18:54]} 34... Nxf5 {[%clk 0:09:20]} 35. Rxf5 {[%clk 0:18:39]} 35... Kg7
{[%clk 0:07:30]} 36. Qc3+ {[%clk 0:18:32]} 36... Kg8 {[%clk 0:06:29]} 37. Rd5
{[%clk 0:18:06]} 37... Qe6 {[%clk 0:06:26]} 38. Qd2 {[%clk 0:17:59]} 38... Rd7
{[%clk 0:06:39]} 39. Qd4 {[%clk 0:17:20]} 39... a6 {[%clk 0:06:12]} 40. Qd2
{[%clk 0:12:44]} 40... Qf6 {[%clk 0:05:59]} 41. Rd3 {[%clk 0:12:21]} 41... Qe6
{[%clk 0:05:00]} 42. f4 {[%clk 0:10:25]} 42... f6 {[%clk 0:04:25]} 43. fxg5
{[%clk 0:10:28]} 43... fxg5 {[%clk 0:04:47]} 44. Qb4 {[%clk 0:07:52]} 44... Kh7
{[%clk 0:03:37]} 45. Qd4 {[%clk 0:06:21]} 45... Kg8 {[%clk 0:03:17]} 46. a4
{[%clk 0:06:27]} 46... a5 {[%clk 0:03:30]} 47. Rd1 {[%clk 0:05:51]} 47... Kh7
{[%clk 0:03:38]} 48. Qd5 {[%clk 0:04:44]} 48... Qxd5 {[%clk 0:03:40]} 49. Rxd5
{[%clk 0:05:06]} 49... b6 {[%clk 0:04:04]} 50. Kf2 {[%clk 0:05:21]} 50... Kg7
{[%clk 0:04:29]} 51. Ke3 {[%clk 0:05:46]} 51... Kf6 {[%clk 0:04:31]} 52. Ke4
{[%clk 0:06:05]} 52... Ke6 {[%clk 0:04:52]} 53. Re5+ {[%clk 0:06:03]} 53... Kxd6
{[%clk 0:02:38]} 54. Rd5+ {[%clk 0:06:26]} 54... Ke6 {[%clk 0:02:57]} 55. Rxd7
{[%clk 0:06:51]} 55... Kxd7 {[%clk 0:03:23]} 56. Kf5 {[%clk 0:07:03]} 56... Kc6
{[%clk 0:03:34]} 57. Kg6 {[%clk 0:07:28]} 57... b5 {[%clk 0:03:58]} 58. Kxh6
{[%clk 0:07:35]} 58... bxa4 {[%clk 0:04:17]} 59. Kxg5 {[%clk 0:07:58]} 59... Kd5
{[%clk 0:04:07]} 1-0

[Variant "Standard"]
[Site "Europe Echecs"]

[Event "Championnat du monde jeunes U12"]
[Date "2024.11.22"]
[White "Nguyen, Khoi"]
[Black "Aadik Theophane Lenin"]
[WhiteElo "1994"]
[BlackElo "1857"]
[Round "7.28"]
[Result "1-0"]
[TimeControl "5400+30"]

1. c4 {[%clk 1:30:59]} 1... Nf6 {[%clk 1:30:05]} 2. Nf3 {[%clk 1:31:18]} 2... g6
{[%clk 1:30:27]} 3. Nc3 {[%clk 1:31:40]} 3... Bg7 {[%clk 1:30:52]} 4. e4 {[%clk
1:30:47]} 4... d6 {[%clk 1:31:18]} 5. d4 {[%clk 1:31:11]} 5... O-O {[%clk
1:31:42]} 6. Be2 {[%clk 1:31:36]} 6... Nbd7 {[%clk 1:32:06]} 7. O-O {[%clk
1:29:56]} 7... e5 {[%clk 1:31:28]} 8. Be3 {[%clk 1:24:27]} 8... Qe7 {[%clk
1:31:44]} 9. Qc2 {[%clk 1:15:43]} 9... c6 {[%clk 1:32:06]} 10. d5 {[%clk
1:14:40]} 10... c5 {[%clk 1:32:34]} 11. Ne1 {[%clk 1:08:59]} 11... Kh8 {[%clk
1:33:02]} 12. a3 {[%clk 1:06:01]} 12... Ng8 {[%clk 1:29:48]} 13. f3 {[%clk
1:04:06]} 13... f5 {[%clk 1:26:17]} 14. b4 {[%clk 0:59:53]} 14... b6 {[%clk
1:26:05]} 15. Nd3 {[%clk 0:58:51]} 15... f4 {[%clk 1:23:40]} 16. Bf2 {[%clk
0:59:12]} 16... h5 {[%clk 1:23:51]} 17. Rfb1 {[%clk 0:50:57]} 17... Nh6 {[%clk
1:22:42]} 18. a4 {[%clk 0:45:43]} 18... a5 {[%clk 1:22:46]} 19. bxc5 {[%clk
0:44:12]} 19... bxc5 {[%clk 1:23:14]} 20. Nb5 {[%clk 0:28:41]} 20... Nb8 {[%clk
1:10:32]} 21. Qc3 {[%clk 0:26:37]} 21... Nf7 {[%clk 1:07:22]} 22. Rb3 {[%clk
0:23:51]} 22... g5 {[%clk 1:04:15]} 23. Rab1 {[%clk 0:23:07]} 23... Rg8 {[%clk
1:01:01]} 24. Kh1 {[%clk 0:16:52]} 24... Bf6 {[%clk 0:58:03]} 25. Nxd6 {[%clk
0:15:16]} 25... Qxd6 {[%clk 0:57:55]} 26. Rb6 {[%clk 0:15:41]} 26... Qd8 {[%clk
0:55:59]} 27. Rxb8 {[%clk 0:15:59]} 27... Rxb8 {[%clk 0:56:28]} 28. Rxb8 {[%clk
0:16:28]} 28... g4 {[%clk 0:56:13]} 29. Bxc5 {[%clk 0:14:58]} 29... g3 {[%clk
0:43:26]} 30. h3 {[%clk 0:14:57]} 30... Qc7 {[%clk 0:40:21]} 31. Qb3 {[%clk
0:14:08]} 31... Ng5 {[%clk 0:39:57]} 32. Bf1 {[%clk 0:11:22]} 32... Qg7 {[%clk
0:38:13]} 33. Qb2 {[%clk 0:11:12]} 33... Bd7 {[%clk 0:33:43]} 34. Rb7 {[%clk
0:10:30]} 34... Rd8 {[%clk 0:30:17]} 35. Bb6 {[%clk 0:09:42]} 35... Rf8 {[%clk
0:30:39]} 36. Nc5 {[%clk 0:09:26]} 36... Rf7 {[%clk 0:31:07]} 37. Nxd7 {[%clk
0:09:47]} 37... Rxd7 {[%clk 0:31:33]} 38. Rxd7 {[%clk 0:09:54]} 38... Qxd7
{[%clk 0:32:01]} 39. Qb5 {[%clk 0:10:12]} 39... Qf7 {[%clk 0:31:38]} 40. Bxa5
{[%clk 0:09:50]} 40... Bg7 {[%clk 0:31:57]} 41. Qb3 {[%clk 0:09:32]} 41... Qe7
{[%clk 0:32:12]} 42. Bb6 {[%clk 0:09:29]} 42... Bf8 {[%clk 0:32:24]} 43. c5
{[%clk 0:09:48]} 43... Qb7 {[%clk 0:32:30]} 44. Qc3 {[%clk 0:09:38]} 44... Nf7
{[%clk 0:32:54]} 45. a5 {[%clk 0:09:54]} 45... Qd7 {[%clk 0:32:34]} 46. Qb3
{[%clk 0:09:57]} 46... Qc8 {[%clk 0:32:52]} 47. Qb5 {[%clk 0:10:08]} 47... Ng5
{[%clk 0:32:46]} 48. Qc6 {[%clk 0:10:14]} 1-0

[Variant "Standard"]
[Site "Europe Echecs"]

[Event "Championnat du monde jeunes U12"]
[Date "2024.11.22"]
[White "Antipov, Fedor"]
[Black "Dauren, Darmen"]
[WhiteElo "1991"]
[BlackElo "1820"]
[Round "7.29"]
[Result "1-0"]
[TimeControl "5400+30"]

1. e4 {[%clk 1:30:59]} 1... d5 {[%clk 1:27:04]} 2. exd5 {[%clk 1:31:05]} 2...
Nf6 {[%clk 1:27:14]} 3. d4 {[%clk 1:30:51]} 3... Nxd5 {[%clk 1:27:19]} 4. c4
{[%clk 1:30:40]} 4... Nb6 {[%clk 1:24:48]} 5. Nf3 {[%clk 1:29:51]} 5... g6
{[%clk 1:24:47]} 6. Nc3 {[%clk 1:27:13]} 6... Bg7 {[%clk 1:24:02]} 7. h3 {[%clk
1:16:38]} 7... Nc6 {[%clk 1:18:11]} 8. Be3 {[%clk 1:11:00]} 8... O-O {[%clk
1:14:27]} 9. Rc1 {[%clk 1:03:50]} 9... Re8 {[%clk 0:56:57]} 10. c5 {[%clk
0:44:58]} 10... Nd5 {[%clk 0:49:19]} 11. Nxd5 {[%clk 0:44:32]} 11... Qxd5 {[%clk
0:49:31]} 12. Bc4 {[%clk 0:44:52]} 12... Qd8 {[%clk 0:49:00]} 13. O-O {[%clk
0:37:13]} 13... e6 {[%clk 0:47:09]} 14. Qd2 {[%clk 0:27:11]} 14... Bd7 {[%clk
0:40:20]} 15. b4 {[%clk 0:24:29]} 15... a6 {[%clk 0:33:06]} 16. a4 {[%clk
0:24:25]} 16... Na7 {[%clk 0:32:51]} 17. d5 {[%clk 0:20:12]} 17... Qc8 {[%clk
0:20:23]} 18. Ng5 {[%clk 0:18:26]} 18... exd5 {[%clk 0:14:11]} 19. Qxd5 {[%clk
0:17:27]} 19... Be6 {[%clk 0:12:15]} 20. Nxe6 {[%clk 0:17:29]} 20... Rxe6 {[%clk
0:11:24]} 21. Qf3 {[%clk 0:14:02]} 21... Rf6 {[%clk 0:10:19]} 22. Qg3 {[%clk
0:13:54]} 22... Rf5 {[%clk 0:08:03]} 23. Rfd1 {[%clk 0:10:22]} 23... Nc6 {[%clk
0:07:15]} 24. b5 {[%clk 0:10:38]} 24... axb5 {[%clk 0:07:35]} 25. axb5 {[%clk
0:11:07]} 25... Ne5 {[%clk 0:06:34]} 26. Bd5 {[%clk 0:11:14]} 26... Ra4 {[%clk
0:05:18]} 27. Bxb7 {[%clk 0:07:31]} 27... Qb8 {[%clk 0:02:02]} 28. Bg5 {[%clk
0:05:02]} 28... f6 {[%clk 0:00:53]} 29. Qb3+ {[%clk 0:05:23]} 29... Kh8 {[%clk
0:01:15]} 30. Qxa4 {[%clk 0:05:39]} 30... Qxb7 {[%clk 0:01:19]} 31. Rd8+ {[%clk
0:06:02]} 31... Bf8 {[%clk 0:01:46]} 32. Bh6 {[%clk 0:05:56]} 32... Nd7 {[%clk
0:02:07]} 33. Bxf8 {[%clk 0:06:07]} 33... Nxf8 {[%clk 0:02:30]} 34. Rxf8+ {[%clk
0:06:35]} 34... Kg7 {[%clk 0:02:53]} 35. Rd8 {[%clk 0:06:26]} 35... c6 {[%clk
0:03:02]} 36. bxc6 {[%clk 0:06:39]} 36... Qb2 {[%clk 0:03:25]} 37. Rd7+ {[%clk
0:07:05]} 37... Kh6 {[%clk 0:03:51]} 38. Qh4+ {[%clk 0:07:29]} 38... Rh5 {[%clk
0:04:12]} 39. Qf4+ {[%clk 0:07:55]} 39... g5 {[%clk 0:04:24]} 40. Qd2 {[%clk
0:08:12]} 40... Qe5 {[%clk 0:04:47]} 41. Qd3 {[%clk 0:08:20]} 41... g4 {[%clk
0:05:12]} 42. Qxh7+ {[%clk 0:08:33]} 42... Kg5 {[%clk 0:05:38]} 43. Rg7+ {[%clk
0:08:49]} 43... Kf4 {[%clk 0:05:56]} 44. Rxg4# {[%clk 0:09:15]} 1-0

[Variant "Standard"]
[Site "Europe Echecs"]

[Event "Championnat du monde jeunes U12"]
[Date "2024.11.22"]
[White "Radnaev, Leo"]
[Black "Wang, Zihao(SH)"]
[WhiteElo "1990"]
[BlackElo "1773"]
[Round "7.30"]
[Result "0-1"]
[TimeControl "5400+30"]

1. e4 {[%clk 1:30:30]} 1... c5 {[%clk 1:30:46]} 2. Nf3 {[%clk 1:31:26]} 2... e6
{[%clk 1:31:13]} 3. d4 {[%clk 1:31:36]} 3... cxd4 {[%clk 1:31:40]} 4. Nxd4
{[%clk 1:31:58]} 4... Nc6 {[%clk 1:32:07]} 5. Nc3 {[%clk 1:32:04]} 5... Qc7
{[%clk 1:32:34]} 6. a3 {[%clk 1:28:06]} 6... a6 {[%clk 1:32:23]} 7. Be3 {[%clk
1:20:56]} 7... b5 {[%clk 1:32:34]} 8. Bd3 {[%clk 1:16:57]} 8... Bb7 {[%clk
1:32:23]} 9. O-O {[%clk 1:16:33]} 9... Nf6 {[%clk 1:32:49]} 10. Kh1 {[%clk
0:57:27]} 10... Be7 {[%clk 1:32:04]} 11. f4 {[%clk 0:57:05]} 11... d6 {[%clk
1:32:31]} 12. Qf3 {[%clk 0:56:13]} 12... O-O {[%clk 1:32:42]} 13. g4 {[%clk
0:54:49]} 13... Nxd4 {[%clk 1:28:46]} 14. Bxd4 {[%clk 0:55:05]} 14... e5 {[%clk
1:28:53]} 15. Be3 {[%clk 0:39:10]} 15... exf4 {[%clk 1:27:52]} 16. Bxf4 {[%clk
0:38:38]} 16... Nd7 {[%clk 1:27:57]} 17. Nd5 {[%clk 0:31:19]} 17... Bxd5 {[%clk
1:28:14]} 18. exd5 {[%clk 0:31:47]} 18... Bf6 {[%clk 1:26:00]} 19. c3 {[%clk
0:22:46]} 19... g6 {[%clk 1:25:06]} 20. Rae1 {[%clk 0:18:03]} 20... Ne5 {[%clk
1:20:12]} 21. Bxe5 {[%clk 0:18:11]} 21... Bxe5 {[%clk 1:20:38]} 22. Kg2 {[%clk
0:16:29]} 22... Qd8 {[%clk 1:19:37]} 23. Qf2 {[%clk 0:15:35]} 23... Qg5 {[%clk
1:15:59]} 24. Be2 {[%clk 0:04:35]} 24... Rab8 {[%clk 1:11:29]} 25. Rd1 {[%clk
0:02:05]} 25... a5 {[%clk 1:10:34]} 26. h4 {[%clk 0:02:15]} 26... Qd8 {[%clk
1:10:36]} 27. Rd3 {[%clk 0:01:19]} 27... b4 {[%clk 1:10:02]} 28. Rf3 {[%clk
0:01:36]} 28... Qd7 {[%clk 1:10:14]} 29. Rh3 {[%clk 0:01:11]} 29... bxc3 {[%clk
1:09:55]} 30. bxc3 {[%clk 0:01:40]} 30... Rb2 {[%clk 1:10:15]} 31. h5 {[%clk
0:00:48]} 31... Qa4 {[%clk 1:07:00]} 32. Qf3 {[%clk 0:00:33]} 32... Bg7 {[%clk
1:05:41]} 33. Rf2 {[%clk 0:00:35]} 33... Qxa3 {[%clk 1:04:47]} 34. Qd3 {[%clk
0:00:33]} 34... Qc5 {[%clk 1:04:29]} 35. hxg6 {[%clk 0:00:50]} 35... fxg6 {[%clk
1:04:27]} 36. Rxf8+ {[%clk 0:01:18]} 36... Bxf8 {[%clk 1:04:50]} 37. Rf3 {[%clk
0:00:42]} 37... Qc8 {[%clk 1:03:54]} 38. Rf2 {[%clk 0:00:33]} 38... Qe8 {[%clk
1:03:29]} 39. Qf3 {[%clk 0:00:32]} 39... a4 {[%clk 1:02:54]} 40. Bd3 {[%clk
0:00:31]} 40... Rxf2+ {[%clk 1:03:14]} 41. Kxf2 {[%clk 0:00:37]} 41... Bg7
{[%clk 1:03:28]} 42. c4 {[%clk 0:00:31]} 42... Bd4+ {[%clk 1:03:21]} 43. Kf1
{[%clk 0:00:32]} 43... a3 {[%clk 1:02:30]} 44. Bb1 {[%clk 0:00:35]} 44... Qb8
{[%clk 1:02:09]} 45. Qe4 {[%clk 0:00:46]} 45... Qf8+ {[%clk 1:01:17]} 46. Ke2
{[%clk 0:00:40]} 46... Qf2+ {[%clk 1:01:12]} 47. Kd3 {[%clk 0:00:43]} 47... Be5
{[%clk 1:00:52]} 48. Qe2 {[%clk 0:00:34]} 48... Qd4+ {[%clk 1:01:10]} 49. Kc2
{[%clk 0:01:02]} 49... Qb2+ {[%clk 1:01:26]} 0-1

[Variant "Standard"]
[Site "Europe Echecs"]

[Event "Championnat du monde jeunes U12"]
[Date "2024.11.22"]
[White "Obidov, Biloliddin"]
[Black "Mai, Duc Kien"]
[WhiteElo "2088"]
[BlackElo "1771"]
[Round "7.31"]
[Result "0-1"]
[TimeControl "5400+30"]

1. d4 {[%clk 1:30:59]} 1... Nf6 {[%clk 1:30:46]} 2. Nf3 {[%clk 1:31:28]} 2... g6
{[%clk 1:31:04]} 3. c4 {[%clk 1:31:24]} 3... Bg7 {[%clk 1:31:27]} 4. g3 {[%clk
1:31:31]} 4... O-O {[%clk 1:31:47]} 5. Bg2 {[%clk 1:31:57]} 5... d5 {[%clk
1:32:12]} 6. O-O {[%clk 1:31:24]} 6... dxc4 {[%clk 1:31:59]} 7. Na3 {[%clk
1:27:19]} 7... c3 {[%clk 1:30:57]} 8. bxc3 {[%clk 1:27:41]} 8... c5 {[%clk
1:30:43]} 9. Ne5 {[%clk 1:26:03]} 9... Nd5 {[%clk 1:16:09]} 10. Qb3 {[%clk
1:16:24]} 10... Nxc3 {[%clk 0:56:41]} 11. Qxc3 {[%clk 1:10:57]} 11... cxd4
{[%clk 0:56:29]} 12. Qc5 {[%clk 1:08:21]} 12... Na6 {[%clk 0:56:56]} 13. Qb5
{[%clk 1:07:37]} 13... Nc7 {[%clk 0:57:22]} 14. Qa5 {[%clk 1:07:58]} 14... b6
{[%clk 0:57:47]} 15. Nc6 {[%clk 0:58:36]} 15... bxa5 {[%clk 0:57:35]} 16. Nxd8
{[%clk 0:59:05]} 16... Rxd8 {[%clk 0:57:43]} 17. Bxa8 {[%clk 0:52:08]} 17... d3
{[%clk 0:42:58]} 18. Rb1 {[%clk 0:27:51]} 18... dxe2 {[%clk 0:42:56]} 19. Re1
{[%clk 0:27:59]} 19... Bf5 {[%clk 0:42:01]} 20. Bf3 {[%clk 0:26:41]} 20... Bc3
{[%clk 0:41:13]} 21. Rxe2 {[%clk 0:25:12]} 21... Rd1+ {[%clk 0:38:44]} 22. Kg2
{[%clk 0:25:41]} 22... Bxb1 {[%clk 0:39:07]} 23. Bf4 {[%clk 0:22:03]} 23... Bd3
{[%clk 0:32:23]} 24. Bxc7 {[%clk 0:19:19]} 24... Bxe2 {[%clk 0:32:05]} 25. Bxe2
{[%clk 0:19:48]} 25... Rd2 {[%clk 0:31:57]} 26. Nb1 {[%clk 0:19:36]} 26... Rd7
{[%clk 0:30:32]} 27. Bf4 {[%clk 0:19:18]} 27... Bb4 {[%clk 0:28:14]} 28. a3
{[%clk 0:19:35]} 28... Bc5 {[%clk 0:28:29]} 29. Kf3 {[%clk 0:13:25]} 29... Rb7
{[%clk 0:27:16]} 30. Bd3 {[%clk 0:13:50]} 30... Rb3 {[%clk 0:26:25]} 31. Ke2
{[%clk 0:13:36]} 31... Bxf2 {[%clk 0:17:35]} 32. Nd2 {[%clk 0:11:05]} 32... Rxa3
{[%clk 0:17:57]} 33. Nc4 {[%clk 0:09:53]} 33... Ra2+ {[%clk 0:18:19]} 34. Bd2
{[%clk 0:10:11]} 34... Bd4 {[%clk 0:15:45]} 35. Kd1 {[%clk 0:08:53]} 35... Ra1+
{[%clk 0:14:01]} 36. Bc1 {[%clk 0:08:54]} 36... a4 {[%clk 0:12:28]} 37. Kd2
{[%clk 0:07:03]} 37... h5 {[%clk 0:11:10]} 38. h3 {[%clk 0:05:20]} 38... e6
{[%clk 0:11:11]} 39. Bc2 {[%clk 0:03:30]} 39... Bc3+ {[%clk 0:11:19]} 40. Kd1
{[%clk 0:03:59]} 40... a3 {[%clk 0:10:51]} 41. Nxa3 {[%clk 0:04:05]} 41... Bb2
{[%clk 0:11:16]} 42. Nb1 {[%clk 0:04:30]} 42... Bxc1 {[%clk 0:11:40]} 43. Kxc1
{[%clk 0:04:55]} 43... Ra5 {[%clk 0:12:03]} 44. Nd2 {[%clk 0:05:10]} 44... Kg7
{[%clk 0:12:18]} 45. Kb2 {[%clk 0:05:32]} 45... Re5 {[%clk 0:12:37]} 46. g4
{[%clk 0:05:46]} 46... Re3 {[%clk 0:12:09]} 47. gxh5 {[%clk 0:06:01]} 47... gxh5
{[%clk 0:12:33]} 48. h4 {[%clk 0:06:09]} 48... Rh3 {[%clk 0:12:54]} 49. Ne4
{[%clk 0:05:37]} 49... Rxh4 {[%clk 0:13:07]} 50. Kc3 {[%clk 0:05:30]} 50... Rxe4
{[%clk 0:13:10]} 0-1

[Variant "Standard"]
[Site "Europe Echecs"]

[Event "Championnat du monde jeunes U12"]
[Date "2024.11.22"]
[White "Padure, Dragos-Alexandru"]
[Black "Rueda Ahumada, Gabriel Omar"]
[WhiteElo "1822"]
[BlackElo "1928"]
[Round "7.32"]
[Result "1/2-1/2"]
[TimeControl "5400+30"]

1. e4 {[%clk 1:30:55]} 1... e5 {[%clk 1:30:53]} 2. Nf3 {[%clk 1:30:50]} 2... Nc6
{[%clk 1:31:15]} 3. Nc3 {[%clk 1:30:48]} 3... Nf6 {[%clk 1:31:35]} 4. d4 {[%clk
1:30:51]} 4... exd4 {[%clk 1:31:58]} 5. Nxd4 {[%clk 1:31:14]} 5... Bc5 {[%clk
1:32:20]} 6. Nxc6 {[%clk 1:26:21]} 6... bxc6 {[%clk 1:32:36]} 7. Bd3 {[%clk
1:25:06]} 7... d5 {[%clk 1:26:14]} 8. exd5 {[%clk 1:15:26]} 8... cxd5 {[%clk
1:25:10]} 9. O-O {[%clk 1:13:41]} 9... O-O {[%clk 1:23:50]} 10. h3 {[%clk
1:11:12]} 10... a5 {[%clk 1:18:07]} 11. Bg5 {[%clk 1:04:55]} 11... c6 {[%clk
1:12:39]} 12. Qf3 {[%clk 1:02:22]} 12... Bd4 {[%clk 1:01:08]} 13. Rad1 {[%clk
0:54:26]} 13... h6 {[%clk 1:01:30]} 14. Bd2 {[%clk 0:38:18]} 14... Qc7 {[%clk
0:53:33]} 15. Bf4 {[%clk 0:37:25]} 15... Be5 {[%clk 0:53:53]} 16. Bxe5 {[%clk
0:37:15]} 16... Qxe5 {[%clk 0:54:14]} 17. Rfe1 {[%clk 0:37:02]} 17... Qg5 {[%clk
0:50:57]} 18. Re2 {[%clk 0:28:32]} 18... Be6 {[%clk 0:48:18]} 19. Rde1 {[%clk
0:27:06]} 19... Nd7 {[%clk 0:48:41]} 20. Nd1 {[%clk 0:19:28]} 20... Rab8 {[%clk
0:44:18]} 21. c3 {[%clk 0:17:51]} 21... c5 {[%clk 0:44:25]} 22. Bb1 {[%clk
0:16:18]} 22... g6 {[%clk 0:40:28]} 23. Qe3 {[%clk 0:15:34]} 23... Qxe3 {[%clk
0:24:54]} 24. Rxe3 {[%clk 0:15:37]} 24... Kg7 {[%clk 0:23:20]} 25. b3 {[%clk
0:11:14]} 25... Rb6 {[%clk 0:21:34]} 26. Nb2 {[%clk 0:10:23]} 26... Rd8 {[%clk
0:19:45]} 27. Nd3 {[%clk 0:09:16]} 27... d4 {[%clk 0:10:45]} 28. cxd4 {[%clk
0:09:37]} 28... cxd4 {[%clk 0:11:14]} 29. R3e2 {[%clk 0:09:00]} 29... Bf5 {[%clk
0:10:46]} 30. Ne5 {[%clk 0:07:46]} 30... Bxb1 {[%clk 0:10:35]} 31. Nxd7 {[%clk
0:07:36]} 31... Rxd7 {[%clk 0:11:01]} 32. Rxb1 {[%clk 0:07:59]} 32... Kf6 {[%clk
0:10:43]} 33. f3 {[%clk 0:07:35]} 33... Rc6 {[%clk 0:06:28]} 34. Kf2 {[%clk
0:07:05]} 34... Kf5 {[%clk 0:02:41]} 35. Rd1 {[%clk 0:06:30]} 35... Rc3 {[%clk
0:02:51]} 36. Red2 {[%clk 0:06:27]} 36... Ke5 {[%clk 0:03:00]} 37. Ke2 {[%clk
0:05:16]} 37... f5 {[%clk 0:02:50]} 38. Rd3 {[%clk 0:02:13]} 38... Rc2+ {[%clk
0:01:50]} 39. R1d2 {[%clk 0:02:22]} 39... Rc5 {[%clk 0:01:20]} 40. g3 {[%clk
0:01:50]} 40... g5 {[%clk 0:01:33]} 41. Kf2 {[%clk 0:01:26]} 41... h5 {[%clk
0:01:28]} 42. Re2+ {[%clk 0:01:31]} 42... Kf6 {[%clk 0:01:57]} 43. Red2 {[%clk
0:01:45]} 43... Rcd5 {[%clk 0:01:08]} 44. f4 {[%clk 0:01:25]} 44... gxf4 {[%clk
0:00:37]} 45. gxf4 {[%clk 0:01:53]} 45... R7d6 {[%clk 0:00:53]} 46. Kf3 {[%clk
0:01:33]} 46... Ke7 47. Rg2 1/2-1/2

[Variant "Standard"]
[Site "Europe Echecs"]